fUSD/lending_fUSD_20250818
["ID","MTS","AMOUNT","RATE_DAILY","PERIOD"]
[380077573,1755531282985,-500.0,0.00030136,120]
[380077574,1755531283020,-500.0,0.00030136,120]
[380077575,1755531283058,-500.0,0.00030136,120]
[380077576,1755531283097,-500.0,0.00030136,120]
[380077577,1755531283133,-500.0,0.00030136,120]
[380077578,1755531283554,-500.0,0.00030136,120]
[380077579,1755531283590,-866.99,0.00030136,120]
[380077580,1755531283626,-500.0,0.00030136,120]
[380077581,1755531283664,-500.0,0.00030136,120]
[380077582,1755531283703,-400.0,0.00030136,120]
[380077583,1755531283741,-400.0,0.00030136,120]
[380077584,1755531283778,-400.0,0.00030136,120]
[380077585,1755531283816,-400.0,0.00030136,120]
[380077586,1755531283854,-445.24,0.00030136,120]
[380077587,1755531283891,-3913.15,0.00030136,120]
[380077588,1755531283929,-637.19,0.00030136,120]
[380077589,1755531283967,-5975.35,0.00030136,120]
[380077590,1755531284004,-400.0,0.00030136,120]
[380077591,1755531284040,-1012.03,0.00030136,120]
[380077592,1755531284079,-3270.76,0.00030136,120]
[380077593,1755531284117,-1013.55,0.00030136,120]
[380077594,1755531284157,-500.0,0.00030136,120]
[380077595,1755531284202,-500.0,0.00030136,120]
[380077596,1755531284240,-500.0,0.00030136,120]
[380077597,1755531284278,-500.0,0.00030136,120]
[380077598,1755531284315,-500.0,0.00030136,120]
[380077599,1755531284354,-1607.82,0.00030136,120]
[380077600,1755531284392,-500.0,0.00030136,120]
[380077601,1755531284429,-628.09927623,0.00030136,120]
[380077602,1755531284466,-2450.54,0.00030136,120]
[380077603,1755531284505,-1759.72,0.00030136,120]
[380077604,1755531284649,-400.0,0.00030136,120]
[380077605,1755531284691,-400.0,0.00030136,120]
[380077606,1755531284728,-754.1,0.00030136,120]
[380077607,1755531284764,-168.98863834,0.00030136,120]
[380077608,1755531284800,-400.0,0.00030136,120]
[380077609,1755531284836,-400.0,0.00030136,120]
[380077610,1755531284872,-3538.14,0.00030136,120]
[380077611,1755531284910,-2861.56,0.00030136,120]
[380077612,1755531284948,-400.0,0.00030136,120]
[380077613,1755531284985,-535.88521487,0.00030136,120]
[380077614,1755531285022,-400.0,0.00030136,120]
[380077615,1755531285060,-3450.39,0.00030136,120]
[380077616,1755531285098,-400.66681322,0.00030136,120]
[380077617,1755531285135,-4160.68,0.00030136,120]
[380077618,1755531285174,-400.0,0.00030136,120]
[380077619,1755531285210,-501.29,0.00030136,120]
[380077620,1755531285249,-1093.27,0.00030136,120]
[380077621,1755531285287,-1211.61,0.00030136,120]
[380077622,1755531285323,-1724.19,0.00030136,120]
[380077623,1755531285360,-400.0,0.00030136,120]
[380077624,1755531285398,-400.0,0.00030136,120]
[380077625,1755531285435,-769.96,0.00030136,120]
[380077626,1755531285472,-3384.75,0.00030136,120]
[380077627,1755531285509,-691.44,0.00030136,120]
[380077628,1755531285545,-408.45,0.00030136,120]
[380077629,1755531285582,-755.75,0.00030136,120]
[380077630,1755531285619,-577.9,0.00030136,120]
[380077631,1755531285656,-2949.76,0.00030136,120]
[380077632,1755531285694,-3560.45,0.00030136,120]
[380077633,1755531285731,-4848.04,0.00030136,120]
[380077634,1755531285767,-1154.25,0.00030136,120]
[380077635,1755531285803,-400.0,0.00030136,120]
[380077636,1755531285840,-400.0,0.00030136,120]
[380077637,1755531285878,-2176.36,0.00030136,120]
[380077638,1755531285915,-414.11,0.00030136,120]
[380077639,1755531285953,-565.61,0.00030136,120]
[380077640,1755531285990,-459.16,0.00030136,120]
[380077641,1755531286027,-4119.72,0.00030136,120]
[380077642,1755531286065,-2122.47,0.00030136,120]
[380077643,1755531286101,-453.83,0.00030136,120]
[380077644,1755531286138,-400.0,0.00030136,120]
[380077645,1755531286179,-400.0,0.00030136,120]
[380077646,1755531286215,-2129.04,0.00030136,120]
[380077647,1755531286255,-400.0,0.00030136,120]
[380077648,1755531286292,-695.51,0.00030136,120]
[380077649,1755531286335,-400.0,0.00030136,120]
[380077650,1755531286377,-2950.91,0.00030136,120]
[380077651,1755531286420,-1385.92,0.00030136,120]
[380077652,1755531286463,-400.0,0.00030136,120]
[380077653,1755531286505,-400.0,0.00030136,120]
[380077654,1755531286548,-400.0,0.00030136,120]
[380077655,1755531286730,-3267.59,0.00030136,120]
[380077656,1755531286770,-400.0,0.00030136,120]
[380077657,1755531286808,-946.61,0.00030136,120]
[380077658,1755531286850,-2884.07,0.00030136,120]
[380077659,1755531286887,-400.0,0.00030136,120]
[380077660,1755531286926,-805.66,0.00030136,120]
[380077661,1755531286964,-400.0,0.00030136,120]
[380077662,1755531287002,-400.0,0.00030136,120]
[380077663,1755531287041,-400.0,0.00030136,120]
[380077664,1755531287083,-1464.33,0.00030136,120]
[380077665,1755531287121,-2356.83,0.00030136,120]
[380077666,1755531287158,-400.0,0.00030136,120]
[380077667,1755531287200,-400.0,0.00030136,120]
[380077668,1755531287241,-534.82,0.00030136,120]
[380077669,1755531287283,-400.0,0.00030136,120]
[380077670,1755531287326,-500.0,0.00030136,120]
[380077671,1755531287369,-500.0,0.00030136,120]
[380077672,1755531287410,-400.0,0.00030136,120]
[380077673,1755531287450,-376.65007055,0.00030136,120]
[380077674,1755531287490,-951.37,0.00030136,120]
[380077675,1755531287531,-158.40654515,0.00030136,120]
[380077676,1755531287573,-400.0,0.00030136,120]
[380077677,1755531287613,-455.01,0.00030136,120]
[380077678,1755531287652,-3088.85,0.00030136,120]
[380077679,1755531287692,-2664.02,0.00030136,120]
[380077680,1755531287731,-7192.67,0.00030136,120]
[380077681,1755531287771,-400.0,0.00030136,120]
[380077682,1755531287809,-4360.9,0.00030136,120]
[380077683,1755531287847,-2282.12,0.00030136,120]
[380077684,1755531287884,-1106.6,0.00030136,120]
[380077685,1755531287922,-400.0,0.00030136,120]
[380077686,1755531287960,-400.0,0.00030136,120]
[380077687,1755531288005,-400.0,0.00030136,120]
[380077688,1755531288049,-400.0,0.00030136,120]
[380077689,1755531288093,-400.0,0.00030136,120]
[380077690,1755531288132,-445.88,0.00030136,120]
[380077691,1755531288175,-400.0,0.00030136,120]
[380077692,1755531288219,-2342.43,0.00030136,120]
[380077693,1755531288259,-604.45,0.00030136,120]
[380077694,1755531288297,-400.0,0.00030136,120]
[380077695,1755531288335,-690.75,0.00030136,120]
[380077696,1755531288373,-400.0,0.00030136,120]
[380077697,1755531288411,-3288.28,0.00030136,120]
[380077698,1755531288449,-973.5,0.00030136,120]
[380077699,1755531288487,-400.0,0.00030136,120]
[380077700,1755531288525,-747.29,0.00030136,120]
[380077701,1755531288563,-400.0,0.00030136,120]
[380077702,1755531288602,-400.0,0.00030136,120]
[380077703,1755531288638,-400.0,0.00030136,120]
[380077704,1755531288675,-400.0,0.00030136,120]
[380077705,1755531288713,-400.0,0.00030136,120]
[380077706,1755531288752,-1016.94,0.00030136,120]
[380077707,1755531288789,-3392.66,0.00030136,120]
[380077708,1755531288826,-400.0,0.00030136,120]
[380077709,1755531288865,-1203.61,0.00030136,120]
[380077710,1755531288903,-400.0,0.00030136,120]
[380077711,1755531288942,-400.0,0.00030136,120]
[380077712,1755531288979,-400.0,0.00030136,120]
[380077713,1755531289015,-400.0,0.00030136,120]
[380077714,1755531289054,-400.0,0.00030136,120]
[380077715,1755531289093,-400.0,0.00030136,120]
[380077716,1755531289130,-400.0,0.00030136,120]
[380077717,1755531289168,-989.16,0.00030136,120]
[380077718,1755531289211,-400.0,0.00030136,120]
[380077719,1755531289249,-400.0,0.00030136,120]
[380077720,1755531289286,-1432.8,0.00030136,120]
[380077721,1755531289323,-4673.51,0.00030136,120]
[380077722,1755531289359,-3778.72,0.00030136,120]
[380077723,1755531289395,-743.68,0.00030136,120]
[380077724,1755531289431,-1495.96,0.00030136,120]
[380077725,1755531289465,-400.0,0.00030136,120]
[380077726,1755531289500,-400.0,0.00030136,120]
[380077727,1755531289536,-2164.77,0.00030136,120]
[380077728,1755531289572,-400.0,0.00030136,120]
[380077729,1755531289606,-3118.28,0.00030136,120]
[380077730,1755531289640,-400.0,0.00030136,120]
[380077731,1755531289676,-400.0,0.00030136,120]
[380077732,1755531289709,-400.0,0.00030136,120]
[380077733,1755531289743,-1085.7,0.00030136,120]
[380077734,1755531289777,-2066.34,0.00030136,120]
[380077735,1755531289813,-561.03,0.00030136,120]
[380077736,1755531289848,-540.0,0.00030136,120]
[380077737,1755531289882,-365.64571731,0.00030136,120]
[380077738,1755531289919,-913.61,0.00030136,120]
[380077739,1755531289954,-400.0,0.00030136,120]
[380077740,1755531289988,-400.0,0.00030136,120]
[380077741,1755531290024,-400.0,0.00030136,120]
[380077742,1755531290057,-3893.67,0.00030136,120]
[380077743,1755531290090,-4227.26,0.00030136,120]
[380077744,1755531290124,-1002.61,0.00030136,120]
[380077745,1755531290157,-400.0,0.00030136,120]
[380077746,1755531290191,-400.0,0.00030136,120]
[380077747,1755531290246,-556.8,0.00030136,120]
[380077748,1755531290291,-400.0,0.00030136,120]
[380077749,1755531290352,-400.0,0.00030136,120]
[380077750,1755531290387,-1303.3,0.00030136,120]
[380077751,1755531290423,-2411.06,0.00030136,120]
[380077752,1755531290458,-413.38,0.00030136,120]
[380077753,1755531290492,-400.0,0.00030136,120]
[380077754,1755531290527,-400.0,0.00030136,120]
[380077755,1755531290563,-308.55,0.00030136,120]
[380077756,1755531290597,-2535.69,0.00030136,120]
[380077757,1755531290632,-403.1214771,0.00030136,120]
[380077758,1755531290667,-400.0,0.00030136,120]
[380077759,1755531290702,-400.0,0.00030136,120]
[380077760,1755531290736,-400.0,0.00030136,120]
[380077761,1755531290771,-400.0,0.00030136,120]
[380077762,1755531290804,-400.0,0.00030136,120]
[380077763,1755531290838,-2781.02,0.00030136,120]
[380077764,1755531290872,-400.0,0.00030136,120]
[380077765,1755531290905,-400.0,0.00030136,120]
[380077766,1755531290938,-1476.96,0.00030136,120]
[380077767,1755531290973,-400.0,0.00030136,120]
[380077768,1755531291007,-506.37,0.00030136,120]
[380077769,1755531291040,-474.09,0.00030136,120]
[380077770,1755531291074,-1084.99,0.00030136,120]
[380077771,1755531291108,-1634.71,0.00030136,120]
[380077772,1755531291290,-400.0,0.00030136,120]
[380077773,1755531291324,-775.69,0.00030136,120]
[380077774,1755531291358,-400.0,0.00030136,120]
[380077775,1755531291394,-534.94,0.00030136,120]
[380077776,1755531291430,-400.0,0.00030136,120]
[380077777,1755531291465,-400.0,0.00030136,120]
[380077778,1755531291500,-1958.02,0.00030136,120]
[380077779,1755531291535,-1791.81,0.00030136,120]
[380077780,1755531291569,-400.0,0.00030136,120]
[380077781,1755531291602,-400.0,0.00030136,120]
[380077782,1755531291637,-400.0,0.00030136,120]
[380077783,1755531291672,-400.0,0.00030136,120]
[380077784,1755531291707,-3543.48,0.00030136,120]
[380077785,1755531291741,-1670.51,0.00030136,120]
[380077786,1755531291775,-400.0,0.00030136,120]
[380077787,1755531291809,-19812.68,0.00030136,118]
[380077788,1755531291843,-2415.99,0.00030136,120]
[380077789,1755531291877,-1102.14,0.00030136,120]
[380077790,1755531291911,-687.69,0.00030136,120]
[380077791,1755531291946,-400.0,0.00030136,120]
[380077792,1755531291981,-3372.1,0.00030136,120]
[380077793,1755531292015,-400.0,0.00030136,120]
[380077794,1755531292048,-4270.16,0.00030136,120]
[380077795,1755531292083,-400.0,0.00030136,120]
[380077796,1755531292118,-1884.34,0.00030136,120]
[380077797,1755531292153,-3014.36,0.00030136,120]
[380077798,1755531292188,-3182.87,0.00030136,120]
[380077799,1755531292223,-669.38,0.00030136,120]
[380077800,1755531292258,-400.0,0.00030136,120]
[380077801,1755531292294,-400.0,0.00030136,120]
[380077802,1755531292330,-400.0,0.00030136,120]
[380077803,1755531292363,-976.71,0.00030136,120]
[380077804,1755531292400,-876.05,0.00030136,120]
[380077805,1755531292435,-400.0,0.00030136,120]
[380077806,1755531292472,-400.0,0.00030136,120]
[380077807,1755531292507,-400.0,0.00030136,120]
[380077808,1755531292540,-500.0,0.00030136,120]
[380077809,1755531292573,-537.04828653,0.00030136,120]
[380077810,1755531292607,-400.0,0.00030136,120]
[380077811,1755531292640,-740.2,0.00030136,60]
[380077812,1755531292673,-400.97487662,0.00030136,120]
[380077813,1755531292708,-400.0,0.00030136,120]
[380077814,1755531292742,-1128.3,0.00030136,120]
[380077815,1755531292776,-400.0,0.00030136,120]
[380077816,1755531292811,-945.45,0.00030136,120]
[380077817,1755531292845,-400.0,0.00030136,120]
[380077818,1755531292879,-400.0,0.00030136,120]
[380077819,1755531292912,-400.0,0.00030136,120]
[380077820,1755531292948,-400.0,0.00030136,120]
[380077821,1755531292981,-4022.61,0.00030136,120]
[380077822,1755531293014,-400.0,0.00030136,120]
[380077823,1755531293048,-1051.15,0.00030136,120]
[380077824,1755531293083,-1236.79,0.00030136,120]
[380077825,1755531293117,-2738.72,0.00030136,120]
[380077826,1755531293153,-854.45,0.00030136,120]
[380077827,1755531293188,-400.0,0.00030136,120]
[380077828,1755531293223,-400.0,0.00030136,120]
[380077829,1755531293259,-400.0,0.00030136,120]
[380077830,1755531293294,-843.31,0.00030136,120]
[380077831,1755531293331,-3726.41,0.00030136,120]
[380077832,1755531293366,-2471.99,0.00030136,120]
[380077833,1755531293401,-2738.93,0.00030136,120]
[380077834,1755531293437,-681.47,0.00030136,120]
[380077835,1755531293470,-400.0,0.00030136,120]
[380077836,1755531293504,-400.0,0.00030136,120]
[380077837,1755531293537,-400.0,0.00030136,120]
[380077838,1755531293571,-461.17822801,0.00030136,120]
[380077839,1755531293604,-400.0,0.00030136,120]
[380077840,1755531293638,-1497.04,0.00030136,120]
[380077841,1755531293673,-400.0,0.00030136,120]
[380077842,1755531293709,-400.0,0.00030136,120]
[380077843,1755531293744,-1747.34235024,0.00030136,120]
[380077844,1755531293779,-400.0,0.00030136,120]
[380077845,1755531293814,-3010.51,0.00030136,120]
[380077846,1755531293848,-503.52,0.00030136,120]
[380077847,1755531293881,-400.0,0.00030136,120]
[380077848,1755531293915,-1595.04,0.00030136,120]
[380077849,1755531293949,-400.0,0.00030136,120]
[380077850,1755531293984,-400.0,0.00030136,120]
[380077851,1755531294019,-400.0,0.00030136,120]
[380077852,1755531294056,-4163.41,0.00030136,120]
[380077853,1755531294091,-1233.8,0.00030136,120]
[380077854,1755531294130,-4646.68,0.00030136,120]
[380077855,1755531294166,-580.22,0.00030136,120]
[380077856,1755531294206,-400.0,0.00030136,120]
[380077857,1755531294244,-400.0,0.00030136,120]
[380077858,1755531294281,-1000.0,0.00030136,120]
[380077859,1755531294317,-400.0,0.00030136,120]
[380077860,1755531294353,-883.26,0.00030136,120]
[380077861,1755531294390,-2941.91,0.00030136,120]
[380077862,1755531294427,-400.0,0.00030136,120]
[380077863,1755531294464,-2788.1,0.00030136,120]
[380077864,1755531294508,-1770.77,0.00030136,120]
[380077865,1755531294545,-5433.63,0.00030136,120]
[380077866,1755531295042,-988.38,0.00030136,120]
[380077867,1755531295078,-1397.53,0.00030136,120]
[380077868,1755531295113,-1601.67,0.00030136,120]
[380077869,1755531295150,-400.0,0.00030136,120]
[380077870,1755531295191,-1220.41,0.00030136,120]
[380077871,1755531295229,-400.0,0.00030136,120]
[380077872,1755531295267,-400.0,0.00030136,120]
[380077873,1755531295306,-2556.06,0.00030136,120]
[380077874,1755531295343,-1720.59,0.00030136,120]
[380077875,1755531295381,-400.0,0.00030136,120]
[380077876,1755531295419,-1882.5,0.00030136,120]
[380077877,1755531295458,-400.0,0.00030136,120]
[380077878,1755531295495,-415.48,0.00030136,120]
[380077879,1755531295532,-400.0,0.00030136,120]
[380077880,1755531295569,-793.65,0.00030136,120]
[380077881,1755531295604,-500.0,0.00030136,120]
[380077882,1755531295644,-500.0,0.00030136,120]
[380077883,1755531295681,-500.0,0.00030136,120]
[380077884,1755531295718,-500.0,0.00030136,120]
[380077885,1755531295774,-500.0,0.00030136,120]
[380077886,1755531295859,-500.0,0.00030136,120]
[380077887,1755531295896,-500.0,0.00030136,120]
[380077888,1755531295934,-500.0,0.00030136,120]
[380077889,1755531295969,-163.66161751,0.00030136,120]
[380077890,1755531296005,-400.0,0.00030136,120]
[380077891,1755531296041,-400.0,0.00030136,120]
[380077892,1755531296079,-400.0,0.00030136,120]
[380077893,1755531296116,-400.0,0.00030136,120]
[380077894,1755531296154,-2054.98,0.00030136,120]
[380077895,1755531296192,-400.0,0.00030136,120]
[380077896,1755531296228,-500.0,0.00030136,120]
[380077897,1755531296266,-465.21,0.00030136,120]
[380077898,1755531296303,-615.8,0.00030136,120]
[380077899,1755531296339,-3483.3,0.00030136,120]
[380077900,1755531296375,-400.0,0.00030136,120]
[380077901,1755531296411,-400.0,0.00030136,120]
[380077902,1755531296446,-2422.74,0.00030136,120]
[380077903,1755531296490,-400.0,0.00030136,120]
[380077904,1755531296531,-400.0,0.00030136,120]
[380077905,1755531296570,-562.07,0.00030136,120]
[380077906,1755531296610,-400.0,0.00030136,120]
[380077907,1755531296649,-400.0,0.00030136,120]
[380077908,1755531296686,-400.0,0.00030136,120]
[380077909,1755531296723,-400.0,0.00030136,120]
[380077910,1755531296760,-400.0,0.00030136,120]
[380077911,1755531296796,-3650.68,0.00030136,120]
[380077912,1755531296833,-400.0,0.00030136,120]
[380077913,1755531296869,-400.0,0.00030136,120]
[380077914,1755531296906,-649.93,0.00030136,120]
[380077915,1755531296944,-2186.73,0.00030136,120]
[380077916,1755531296980,-983.99,0.00030136,120]
[380077917,1755531297018,-400.0,0.00030136,120]
[380077918,1755531297060,-859.27,0.00030136,120]
[380077919,1755531297098,-545.81364558,0.00030136,120]
[380077920,1755531297140,-1281.96,0.00030136,120]
[380077921,1755531297183,-841.07,0.00030136,120]
[380077922,1755531297226,-400.0,0.00030136,120]
[380077923,1755531297265,-224.50136907,0.00030136,120]
[380077924,1755531297303,-400.0,0.00030136,120]
[380077925,1755531297340,-2567.96,0.00030136,120]
[380077926,1755531297377,-3451.67,0.00030136,120]
[380077927,1755531297413,-400.0,0.00030136,120]
[380077928,1755531297451,-400.0,0.00030136,120]
[380077929,1755531297487,-400.0,0.00030136,120]
[380077930,1755531297525,-1001.3,0.00030136,120]
[380077931,1755531297562,-400.0,0.00030136,120]
[380077932,1755531297598,-659.67,0.00030136,120]
[380077933,1755531297634,-8683.4,0.00030136,120]
[380077934,1755531297674,-2497.13,0.00030136,120]
[380077935,1755531297712,-400.0,0.00030136,120]
[380077936,1755531297750,-400.0,0.00030136,120]
[380077937,1755531297786,-1919.24,0.00030136,120]
[380077938,1755531297822,-400.0,0.00030136,120]
[380077939,1755531297859,-768.45,0.00030136,120]
[380077940,1755531297902,-21144.29,0.00030136,120]
[380077941,1755531297940,-400.0,0.00030136,120]
[380077942,1755531297976,-904.33,0.00030136,120]
[380077943,1755531298167,-541.1317576,0.00030136,120]
[380077944,1755531298215,-1577.09,0.00030136,120]
[380077945,1755531298254,-400.0,0.00030136,120]
[380077946,1755531298294,-400.0,0.00030136,120]
[380077947,1755531298331,-612.34,0.00030136,120]
[380077948,1755531298367,-1008.53,0.00030136,120]
[380077949,1755531298403,-1008.53,0.00030136,120]
[380077950,1755531298443,-1008.53,0.00030136,120]
[380077951,1755531298485,-435.79,0.00030136,120]
[380077952,1755531298527,-1008.53,0.00030136,120]
[380077953,1755531298568,-494.54,0.00030136,120]
[380077954,1755531298604,-1008.53,0.00030136,120]
[380077955,1755531298643,-846.91,0.00030136,120]
[380077956,1755531298678,-4015.71,0.00030136,60]
[380077957,1755531298712,-406.64,0.00030136,120]
[380077958,1755531298750,-1008.53,0.00030136,120]
[380077959,1755531298789,-400.0,0.00030136,120]
[380077960,1755531298828,-1008.53,0.00030136,120]
[380077961,1755531298867,-1008.53,0.00030136,120]
[380077962,1755531298903,-1008.53,0.00030136,120]
[380077963,1755531298938,-400.0,0.00030136,120]
[380077964,1755531298974,-1008.53,0.00030136,120]
[380077965,1755531299009,-1008.53,0.00030136,120]
[380077966,1755531299051,-1008.53,0.00030136,120]
[380077967,1755531299092,-1008.53,0.00030136,120]
[380077968,1755531299133,-1008.53,0.00030136,120]
[380077969,1755531299175,-1008.53,0.00030136,120]
[380077970,1755531299220,-1008.53,0.00030136,120]
[380077971,1755531299260,-1008.53,0.00030136,120]
[380077972,1755531299299,-1008.53,0.00030136,120]
[380077973,1755531299337,-1008.53,0.00030136,120]
[380077974,1755531299377,-1008.53,0.00030136,120]
[380077975,1755531299414,-1008.53,0.00030136,120]
[380077976,1755531299452,-1008.53,0.00030136,120]
[380077977,1755531299489,-1008.53,0.00030136,120]
[380077978,1755531299525,-1008.57009216,0.00030136,120]
[380077979,1755531299561,-400.0,0.00030136,120]
[380077980,1755531299596,-400.0,0.00030136,120]
[380077981,1755531299631,-400.0,0.00030136,120]
[380077982,1755531299666,-400.0,0.00030136,120]
[380077983,1755531299704,-2929.19,0.00030136,120]
[380077984,1755531299742,-1996.52,0.00030136,120]
[380077985,1755531299778,-688.76,0.00030136,120]
[380077986,1755531299814,-238.64576508,0.00030136,120]
[380077987,1755531299849,-1859.75,0.00030136,120]
[380077988,1755531299884,-1073.88,0.00030136,120]
[380077989,1755531299919,-400.0,0.00030136,120]
[380077990,1755531299954,-4014.32,0.00030136,120]
[380077991,1755531299990,-422.37310968,0.00030136,120]
[380077992,1755531300025,-400.0,0.00030136,120]
[380077993,1755531300061,-1960.35,0.00030136,120]
[380077994,1755531300098,-1582.07,0.00030136,120]
[380077995,1755531300134,-400.0,0.00030136,120]
[380077996,1755531300171,-1006.74,0.00030136,120]
[380077997,1755531300221,-400.0,0.00030136,120]
[380077998,1755531300262,-2997.68,0.00030136,120]
[380077999,1755531300299,-309.65599826,0.00030136,120]
[380078000,1755531300338,-400.0,0.00030136,120]
[380078001,1755531300382,-400.0,0.00030136,120]
[380078002,1755531300421,-400.0,0.00030136,120]
[380078003,1755531300464,-1892.22,0.00030136,120]
[380078004,1755531300503,-150.1853236,0.00030136,120]
[380078005,1755531300541,-400.0,0.00030136,120]
[380078006,1755531300579,-1076.8,0.00030136,120]
[380078007,1755531300619,-400.0,0.00030136,120]
[380078008,1755531300656,-834.08,0.00030136,120]
[380078009,1755531300694,-400.0,0.00030136,120]
[380078010,1755531300730,-964.84,0.00030136,120]
[380078011,1755531300767,-1252.04,0.00030136,120]
[380078012,1755531300804,-6078.48,0.00030136,120]
[380078013,1755531300840,-400.0,0.00030136,120]
[380078014,1755531300877,-400.0,0.00030136,120]
[380078015,1755531300914,-400.0,0.00030136,120]
[380078016,1755531300952,-577.43,0.00030136,120]
[380078017,1755531300988,-400.0,0.00030136,120]
[380078018,1755531301024,-400.0,0.00030136,120]
[380078019,1755531301058,-870.1,0.00030136,120]
[380078020,1755531301093,-730.4,0.00030136,120]
[380078021,1755531301128,-400.0,0.00030136,120]
[380078022,1755531301162,-400.0,0.00030136,120]
[380078023,1755531301200,-400.0,0.00030136,120]
[380078024,1755531301245,-1470.19,0.00030136,120]
[380078025,1755531301319,-400.0,0.00030136,120]
[380078026,1755531301404,-671.51,0.00030136,120]
[380078027,1755531301441,-3714.75,0.00030136,120]
[380078028,1755531301476,-400.0,0.00030136,120]
[380078029,1755531301512,-400.0,0.00030136,120]
[380078030,1755531301547,-400.0,0.00030136,120]
[380078031,1755531301582,-400.0,0.00030136,120]
[380078032,1755531301618,-2330.81,0.00030136,120]
[380078033,1755531301654,-704.43,0.00030136,120]
[380078034,1755531301693,-400.0,0.00030136,120]
[380078035,1755531301732,-1142.14,0.00030136,120]
[380078036,1755531301773,-563.4,0.00030136,120]
[380078037,1755531301813,-400.0,0.00030136,120]
[380078038,1755531301851,-400.0,0.00030136,120]
[380078039,1755531301888,-2163.04,0.00030136,120]
[380078040,1755531301924,-400.0,0.00030136,120]
[380078041,1755531301959,-705.46,0.00030136,120]
[380078042,1755531301994,-471.82,0.00030136,120]
[380078043,1755531302030,-400.0,0.00030136,120]
[380078044,1755531302067,-400.0,0.00030136,120]
[380078045,1755531302103,-400.0,0.00030136,120]
[380078046,1755531302139,-400.0,0.00030136,120]
[380078047,1755531302180,-6188.23,0.00030136,120]
[380078048,1755531302219,-1062.35,0.00030136,120]
[380078049,1755531302259,-400.0,0.00030136,120]
[380078050,1755531302297,-400.0,0.00030136,120]
[380078051,1755531302335,-400.0,0.00030136,120]
[380078052,1755531302372,-400.0,0.00030136,120]
[380078053,1755531302415,-956.27,0.00030136,120]
[380078054,1755531302451,-3649.46,0.00030136,120]
[380078055,1755531302487,-2576.98,0.00030136,120]
[380078056,1755531302525,-2010.89,0.00030136,120]
[380078057,1755531302562,-1158.42,0.00030136,60]
[380078058,1755531302604,-400.0,0.00030136,120]
[380078059,1755531302645,-400.0,0.00030136,120]
[380078060,1755531302686,-22410.16,0.00030136,120]
[380078061,1755531302864,-400.0,0.00030136,120]
[380078062,1755531302902,-585.53,0.00030136,120]
[380078063,1755531302939,-1994.69,0.00030136,120]
[380078064,1755531302975,-1434.92,0.00030136,120]
[380078065,1755531303010,-400.0,0.00030136,120]
[380078066,1755531303048,-916.76,0.00030136,120]
[380078067,1755531303088,-2418.8,0.00030136,120]
[380078068,1755531303131,-10916.68,0.00030136,120]
[380078069,1755531303170,-471.17,0.00030136,120]
[380078070,1755531303214,-400.0,0.00030136,120]
[380078071,1755531303255,-400.0,0.00030136,120]
[380078072,1755531303295,-400.0,0.00030136,120]